fUST/lending_fUST_20240622
["ID","MTS","AMOUNT","RATE_DAILY","PERIOD"]
[330148229,1719056946277,-179.75621216,0.00014097,2]
[330148230,1719056953157,1583.49961269,0.0001,2]
[330148231,1719056961589,1466.46082565,9.999e-05,2]
[330148232,1719056971231,-615.32823341,0.00014097,2]
[330148233,1719056996138,-627.63479808,0.00014096,2]
[330148264,1719057032001,-300.0,0.00014095,2]
[330148265,1719057032011,-16596.62547208,0.00014096,2]
[330148266,1719057032021,-1978.17602524,0.00014096,2]
[330148267,1719057032030,-216.68394316,0.00014117,2]
[330148268,1719057032042,-207.6633816,0.00014118,2]
[330148269,1719057032051,-164.78171356,0.00014119,2]
[330148270,1719057032061,-154.80649189,0.0001412,2]
[330148271,1719057032070,-287.01788425,0.00015,2]
[330148272,1719057032079,-154.80649189,0.00015,2]
[330148273,1719057032268,-1044.8454151,0.00015,2]
[330148274,1719057032278,-2605.01342204,0.00016,2]
[330148275,1719057032287,-13859.99974129,0.00016871,2]
[330148276,1719057032296,-1583.49961269,0.00017087,2]
[330148277,1719057032312,-620.95724202,0.0001766,2]
[330148278,1719057032322,-407.04561022,0.0001772,2]
[330148279,1719057032331,-157.2256432,0.0001782,2]
[330148280,1719057032340,-7255.33343396,0.00018,2]
[330148302,1719057037795,-1044.8454151,0.00015,2]
[330148304,1719057037806,-228513.9885154,0.00018,2]
[330148306,1719057037815,-1584.98687701,0.00018,2]
[330148307,1719057037825,-477.28525612,0.00018,2]
[330148309,1719057037835,-201.96766519,0.00018,2]
[330148311,1719057037844,-500.0,0.00018,2]
[330148313,1719057037853,-1000.0,0.00018,8]
[330148315,1719057037863,-407.04561022,0.0001806,2]
[330148316,1719057037872,-594.0,0.000181,2]
[330148317,1719057037882,-153.243,0.00018301,2]
[330148318,1719057037892,-1752.0,0.00018301,2]
[330148320,1719057037901,-407.04561022,0.00018399,2]
[330148322,1719057037911,-620.0478621,0.00018544,2]
[330148323,1719057037921,-407.04561022,0.00018739,2]
[330148324,1719057037930,-151.0,0.00018978,2]
[330148325,1719057037941,-151.0,0.00018978,2]
[330148326,1719057037950,-154.80649189,0.00018999,2]
[330148327,1719057037960,-525.29379384,0.00019,2]
[330148328,1719057037970,-1000.0,0.00019,8]
[330148329,1719057037981,-489.36302395,0.00019,2]
[330148330,1719057037991,-10000.0,0.00019,2]
[330148331,1719057038001,-151.0,0.00019,2]
[330148332,1719057038010,-153.797896,0.00019,2]
[330148333,1719057038019,-151.0,0.00019,2]
[330148334,1719057038029,-151.0,0.00019,2]
[330148335,1719057038038,-151.0,0.00019,2]
[330148336,1719057038047,-151.0,0.00019,2]
[330148337,1719057038057,-151.0,0.00019,2]
[330148338,1719057038067,-306.0,0.00019041,2]
[330148339,1719057038076,-250.0,0.00019041,2]
[330148340,1719057038086,-154.80649189,0.00019067,2]
[330148341,1719057038095,-256.94980013,0.00019067,2]
[330148342,1719057038105,-210.78,0.00019068,3]
[330148343,1719057038114,-632.38,0.00019068,3]
[330148344,1719057038124,-1933.44964367,0.00019077,2]
[330148345,1719057038133,-151.0,0.00019078,2]
[330148346,1719057038142,-151.0,0.00019078,2]
[330148347,1719057038152,-151.0,0.00019078,2]
[330148348,1719057038161,-151.0,0.00019078,2]
[330148349,1719057038171,-151.0,0.00019078,2]
[330148350,1719057038180,-164.931718,0.00019078,2]
[330148351,1719057038189,-190.52672,0.00019078,2]
[330148352,1719057038199,-190.52672,0.00019078,2]
[330148353,1719057038209,-151.0,0.00019078,2]
[330148354,1719057038218,-262.541297,0.00019078,2]
[330148355,1719057038230,-151.0,0.00019078,2]
[330148356,1719057038239,-262.541297,0.00019078,2]
[330148357,1719057038248,-151.0,0.00019078,2]
[330148358,1719057038258,-151.0,0.00019078,2]
[330148359,1719057038270,-407.04561022,0.00019078,2]
[330148360,1719057038280,-28833.84240644,0.00019078,2]
[330148361,1719057038293,-662.99822681,0.00019078,2]
[330148416,1719057043011,-3189.84578424,0.00019078,2]
[330148417,1719057043271,-333.92645003,0.00019078,2]
[330148418,1719057043282,-13859.99974129,0.00019078,2]
[330148427,1719057046241,-20114.47354283,0.00019078,2]
[330148432,1719057309077,154.80649189,9.999e-05,2]
[330148435,1719057360619,621.25126786,0.000258,60]
[330148439,1719057732937,273.37336231,9.9e-05,2]
[330148440,1719057744826,273.37336231,9.9e-05,2]
[330148441,1719057752924,273.37336231,9.9e-05,2]
[330148442,1719057761465,273.37336231,9.9e-05,2]
[330148443,1719057770155,273.37336231,9.9e-05,2]
[330148444,1719057779086,273.37336231,9.9e-05,2]
[330148445,1719057787722,273.37336231,9.9e-05,2]
[330148446,1719057797096,273.37336231,9.9e-05,2]
[330148447,1719057805111,273.37336231,9.9e-05,2]
[330148448,1719057813452,273.37336231,9.9e-05,2]
[330148449,1719057821531,273.37336231,9.9e-05,2]
[330148450,1719057829893,273.37336231,9.9e-05,2]
[330148451,1719057837749,530.94,0.00010959,2]
[330148452,1719057838488,273.37336231,9.9e-05,2]
[330148453,1719057846770,273.37336231,9.9e-05,2]
[330148454,1719057848251,442.45,0.00010959,2]
[330148455,1719057855165,273.37336231,9.9e-05,2]
[330148456,1719057863567,273.37336231,9.9e-05,2]
[330148457,1719057874513,273.37336231,9.9e-05,2]
[330148458,1719057883545,273.37336231,9.9e-05,2]
[330148459,1719057892165,273.37336231,9.9e-05,2]
[330148460,1719057901045,273.37336231,9.9e-05,2]
[330148461,1719057910780,273.37336231,9.9e-05,2]
[330148462,1719057919563,273.37336231,9.9e-05,2]
[330148463,1719057927892,273.37336231,9.9e-05,2]
[330148464,1719057934275,4689.21379075,0.00012,2]
[330148465,1719057936127,273.37336231,9.9e-05,2]
[330148466,1719057944838,273.37336231,9.9e-05,2]
[330148467,1719057945493,2039.93581219,0.00012,2]
[330148468,1719057945621,516.63148102,0.00012,2]
[330148469,1719057945673,597.50332868,0.00012,2]
[330148470,1719057948150,844.20857645,0.00012,2]
[330148471,1719057955460,273.37336231,9.9e-05,2]
[330148472,1719057963485,273.37336231,9.9e-05,2]
[330148473,1719057972466,273.37336231,9.9e-05,2]
[330148474,1719057980592,273.37336231,9.9e-05,2]
[330148475,1719057989967,273.37336231,9.9e-05,2]
[330148476,1719057998551,273.37336231,9.9e-05,2]
[330148477,1719058002199,4689.21379075,0.00012,2]
[330148478,1719058006590,550.42589505,0.00012,2]
[330148479,1719058007404,273.37336231,9.9e-05,2]
[330148480,1719058015618,273.37336231,9.9e-05,2]
[330148481,1719058021628,474.87458978,0.00012,2]
[330148482,1719058024796,273.37336231,9.9e-05,2]
[330148483,1719058032919,273.37336231,9.9e-05,2]
[330148484,1719058041118,273.37336231,9.9e-05,2]
[330148485,1719058049952,273.37336231,9.9e-05,2]
[330148486,1719058058802,273.37336231,9.9e-05,2]
[330148487,1719058067331,273.37336231,9.9e-05,2]
[330148488,1719058076267,273.37336231,9.9e-05,2]
[330148489,1719058084341,273.37336231,9.9e-05,2]
[330148490,1719058092730,273.37336231,9.9e-05,2]
[330148491,1719058100775,273.37336231,9.9e-05,2]
[330148492,1719058109143,273.37336231,9.9e-05,2]
[330148494,1719058117425,273.37336231,9.9e-05,2]
[330148495,1719058125510,273.37336231,9.9e-05,2]
[330148496,1719058134447,273.37336231,9.9e-05,2]
[330148497,1719058140210,4689.21379075,0.00012,2]
[330148498,1719058143121,273.37336231,9.9e-05,2]
[330148499,1719058152277,273.37336231,9.9e-05,2]
[330148500,1719058160274,273.37336231,9.9e-05,2]
[330148504,1719058169057,273.37336231,9.9e-05,2]
[330148505,1719058177140,273.37336231,9.9e-05,2]
[330148506,1719058184520,154.80649189,0.00012,2]
[330148507,1719058185434,273.37336231,9.9e-05,2]
[330148508,1719058194082,273.37336231,9.9e-05,2]
[330148509,1719058203001,273.37336231,9.9e-05,2]
[330148510,1719058211025,273.37336231,9.9e-05,2]
[330148511,1719058219353,273.37336231,9.9e-05,2]
[330148512,1719058228061,273.37336231,9.9e-05,2]
[330148513,1719058228702,207.2999383,0.00012,2]
[330148565,1719058232202,-300.0,0.00014379,2]
[330148566,1719058232212,-684.01825298,0.00014645,2]
[330148585,1719058236926,273.37336231,9.9e-05,2]
[330148774,1719058245582,273.37336231,9.9e-05,2]
[330148845,1719058253860,273.37336231,9.9e-05,2]
[330148846,1719058262692,273.37336231,9.9e-05,2]
[330148847,1719058270967,273.37336231,9.9e-05,2]
[330148848,1719058279040,273.37336231,9.9e-05,2]
[330148849,1719058287926,273.37336231,9.9e-05,2]
[330148850,1719058296052,273.37336231,9.9e-05,2]
[330148851,1719058304336,273.37336231,9.9e-05,2]
[330148852,1719058312389,273.37336231,9.9e-05,2]
[330148853,1719058321284,273.37336231,9.9e-05,2]
[330148854,1719058330626,273.37336231,9.9e-05,2]
[330148855,1719058339416,273.37336231,9.9e-05,2]
[330148856,1719058347949,273.37336231,9.9e-05,2]
[330148857,1719058357348,273.37336231,9.9e-05,2]
[330148858,1719058365415,273.37336231,9.9e-05,2]
[330148859,1719058374844,273.37336231,9.9e-05,2]
[330148860,1719058381225,1670.98225881,0.00012,2]
[330148861,1719058382936,273.37336231,9.9e-05,2]
[330148862,1719058391917,273.37336231,9.9e-05,2]
[330148865,1719058400386,273.37336231,9.9e-05,2]
[330148867,1719058408639,273.37336231,9.9e-05,2]
[330148868,1719058416941,273.37336231,9.9e-05,2]
[330148869,1719058425352,273.37336231,9.9e-05,2]
[330148870,1719058433368,273.37336231,9.9e-05,2]
[330148871,1719058441676,432.74,0.00010959,2]
[330148872,1719058441741,273.37336231,9.9e-05,2]
[330148873,1719058450801,273.37336231,9.9e-05,2]
[330148874,1719058452180,360.61,0.00010959,2]
[330148875,1719058459625,273.37336231,9.9e-05,2]
[330148876,1719058468187,273.37336231,9.9e-05,2]
[330148878,1719058474127,150.26,0.00010959,2]
[330148879,1719058476464,273.37336231,9.9e-05,2]
[330148880,1719058484554,273.37336231,9.9e-05,2]
[330148881,1719058492913,273.37336231,9.9e-05,2]
[330148882,1719058501008,273.37336231,9.9e-05,2]
[330148883,1719058510705,273.37336231,9.9e-05,2]
[330148884,1719058518748,273.37336231,9.9e-05,2]
[330148885,1719058527222,273.37336231,9.9e-05,2]
[330148886,1719058535290,273.37336231,9.9e-05,2]
[330148887,1719058543685,273.37336231,9.9e-05,2]
[330148888,1719058551848,273.37336231,9.9e-05,2]
[330148889,1719058560185,273.37336231,9.9e-05,2]
[330148890,1719058568526,273.37336231,9.9e-05,2]
[330148891,1719058577436,273.37336231,9.9e-05,2]
[330148892,1719058585624,273.37336231,9.9e-05,2]
[330148893,1719058593880,273.37336231,9.9e-05,2]
[330148894,1719058601961,273.37336231,9.9e-05,2]
[330148895,1719058610818,273.37336231,9.9e-05,2]
[330148896,1719058619383,273.37336231,9.9e-05,2]
[330148897,1719058628376,273.37336231,9.9e-05,2]
[330148898,1719058637272,273.37336231,9.9e-05,2]
[330148899,1719058646162,273.37336231,9.9e-05,2]
[330148900,1719058654863,273.37336231,9.9e-05,2]
[330148901,1719058663335,273.37336231,9.9e-05,2]
[330148902,1719058671380,273.37336231,9.9e-05,2]
[330148903,1719058680265,273.37336231,9.9e-05,2]
[330148904,1719058688395,273.37336231,9.9e-05,2]
[330148905,1719058696732,273.37336231,9.9e-05,2]
[330148906,1719058705121,273.37336231,9.9e-05,2]
[330148907,1719058713688,273.37336231,9.9e-05,2]
[330148908,1719058721770,273.37336231,9.9e-05,2]
[330148909,1719058730116,273.37336231,9.9e-05,2]
[330148910,1719058738483,273.37336231,9.9e-05,2]
[330148911,1719058747277,273.37336231,9.9e-05,2]
[330148912,1719058755955,273.37336231,9.9e-05,2]
[330148913,1719058764498,273.37336231,9.9e-05,2]
[330148914,1719058773575,273.37336231,9.9e-05,2]
[330148915,1719058782161,273.37336231,9.9e-05,2]
[330148916,1719058791066,273.37336231,9.9e-05,2]
[330148917,1719058799104,273.37336231,9.9e-05,2]
[330148918,1719058802057,155.02768363,0.00012,2]
[330148919,1719058808012,273.37336231,9.9e-05,2]
[330148920,1719058816051,273.37336231,9.9e-05,2]
[330148921,1719058824398,273.37336231,9.9e-05,2]
[330148922,1719058833094,273.37336231,9.9e-05,2]
[330148923,1719058841409,273.37336231,9.9e-05,2]
[330148924,1719058849474,273.37336231,9.9e-05,2]
[330148925,1719058858925,273.37336231,9.9e-05,2]
[330148926,1719058867059,273.37336231,9.9e-05,2]
[330148927,1719058875395,273.37336231,9.9e-05,2]
[330148928,1719058883461,273.37336231,9.9e-05,2]
[330148929,1719058887405,255.20923947,0.00012,2]
[330148930,1719058891695,273.37336231,9.9e-05,2]
[330148931,1719058900161,273.37336231,9.9e-05,2]
[330148932,1719058908416,273.37336231,9.9e-05,2]
[330148933,1719058917146,273.37336231,9.9e-05,2]
[330148934,1719058925327,273.37336231,9.9e-05,2]
[330148935,1719058934009,273.37336231,9.9e-05,2]
[330148936,1719058942300,273.37336231,9.9e-05,2]
[330148937,1719058951635,273.37336231,9.9e-05,2]
[330148938,1719058960979,273.37336231,9.9e-05,2]
[330148939,1719058969521,273.37336231,9.9e-05,2]
[330148940,1719058977870,273.37336231,9.9e-05,2]
[330148941,1719058986614,273.37336231,9.9e-05,2]
[330148942,1719058990737,275.47,0.00010959,2]
[330148943,1719058995503,273.37336231,9.9e-05,2]
[330148944,1719059003489,273.37336231,9.9e-05,2]
[330148945,1719059011725,273.37336231,9.9e-05,2]
[330148946,1719059021500,273.37336231,9.9e-05,2]
[330148947,1719059030353,273.37336231,9.9e-05,2]
[330148948,1719059038607,273.37336231,9.9e-05,2]
[330148949,1719059046659,273.37336231,9.9e-05,2]
[330148950,1719059055847,273.37336231,9.9e-05,2]
[330148951,1719059063902,273.37336231,9.9e-05,2]
[330148952,1719059072830,273.37336231,9.9e-05,2]
[330148954,1719059081114,273.37336231,9.9e-05,2]
[330148955,1719059089834,273.37336231,9.9e-05,2]
[330148956,1719059089874,500.0,0.00014,2]
[330148957,1719059097898,273.37336231,9.9e-05,2]
[330148958,1719059107351,273.37336231,9.9e-05,2]
[330148959,1719059116048,273.37336231,9.9e-05,2]
[330148960,1719059124383,273.37336231,9.9e-05,2]
[330148962,1719059132406,273.37336231,9.9e-05,2]
[330148963,1719059133934,1583.49961269,0.0001,2]
[330148964,1719059140840,273.37336231,9.9e-05,2]
[330148965,1719059142272,10000.0,0.00014,2]
[330148966,1719059149727,273.37336231,9.9e-05,2]
[330148967,1719059158531,273.37336231,9.9e-05,2]
[330148968,1719059166765,273.37336231,9.9e-05,2]
[330148969,1719059168094,229.56,0.00010959,2]
[330148970,1719059174904,273.37336231,9.9e-05,2]
[330148971,1719059178659,191.3,0.00010959,2]
[330148972,1719059183780,273.37336231,9.9e-05,2]
[330148973,1719059184595,896.09363329,0.00012,2]
[330148974,1719059185734,10000.0,0.00026,60]
[330148975,1719059189182,159.41,0.00010959,2]
[330148976,1719059192350,273.37336231,9.9e-05,2]
[330148977,1719059199929,797.1,0.00010959,2]
[330148978,1719059201237,273.37336231,9.9e-05,2]
[330148979,1719059209221,273.37336231,9.9e-05,2]
[330148980,1719059210922,10000.0,0.00014,2]
[330148981,1719059217494,273.37336231,9.9e-05,2]
[330148982,1719059225596,273.37336231,9.9e-05,2]
[330148983,1719059233977,273.37336231,9.9e-05,2]
[330148984,1719059242192,273.37336231,9.9e-05,2]
[330148985,1719059251204,273.37336231,9.9e-05,2]
[330148986,1719059259945,273.37336231,9.9e-05,2]
[330148987,1719059268289,273.37336231,9.9e-05,2]
[330148988,1719059276328,273.37336231,9.9e-05,2]
[330148989,1719059284716,273.37336231,9.9e-05,2]
[330148990,1719059293215,273.37336231,9.9e-05,2]
[330148991,1719059301755,273.37336231,9.9e-05,2]
[330148992,1719059309776,273.37336231,9.9e-05,2]
[330148993,1719059314781,-521.2658805,0.00014094,2]
[330148994,1719059314827,-521.2658805,0.00014094,2]
[330148995,1719059318749,273.37336231,9.9e-05,2]
[330148996,1719059327904,273.37336231,9.9e-05,2]
[330148997,1719059336285,273.37336231,9.9e-05,2]
[330148998,1719059339634,-542.11651572,0.00014094,2]
[330148999,1719059339692,-542.11651572,0.00014094,2]
[330149000,1719059344485,273.37336231,9.9e-05,2]
[330149001,1719059354353,273.37336231,9.9e-05,2]
[330149002,1719059362843,273.37336231,9.9e-05,2]
[330149003,1719059364273,-394.58901421,0.00014094,2]
[330149004,1719059364304,-169.21216213,0.00014095,2]
[330149005,1719059364342,-563.80117634,0.00014095,2]
[330149006,1719059371730,273.37336231,9.9e-05,2]
[330149007,1719059379859,273.37336231,9.9e-05,2]
[330149008,1719059388211,273.37336231,9.9e-05,2]
[330149009,1719059389106,-586.3532234,0.00014095,2]
[330149010,1719059389167,-539.9831727,0.00014095,2]
[330149011,1719059396837,273.37336231,9.9e-05,2]
[330149018,1719059404938,273.37336231,9.9e-05,2]
[330149019,1719059413681,273.37336231,9.9e-05,2]
[330149020,1719059421946,273.37336231,9.9e-05,2]
[330149021,1719059430475,273.37336231,9.9e-05,2]
[330149073,1719059432488,-207.6633816,0.00014094,2]
[330149076,1719059432497,-4912.50457735,0.00014095,2]
[330149179,1719059439292,273.37336231,9.9e-05,2]
[330149189,1719059440546,-5319.97233418,0.00014095,2]
[330149227,1719059446405,-4726.77897415,0.00014095,2]
[330149228,1719059448467,273.37336231,9.9e-05,2]
[330149229,1719059456254,273.37336231,9.9e-05,2]
[330149230,1719059465362,273.37336231,9.9e-05,2]
[330149231,1719059473963,273.37336231,9.9e-05,2]
[330149232,1719059482320,273.37336231,9.9e-05,2]
[330149233,1719059483751,207.6633816,0.00012,2]
[330149234,1719059490426,273.37336231,9.9e-05,2]
[330149235,1719059499414,273.37336231,9.9e-05,2]
[330149236,1719059508193,273.37336231,9.9e-05,2]
[330149237,1719059516333,273.37336231,9.9e-05,2]
[330149238,1719059525177,273.37336231,9.9e-05,2]
[330149239,1719059533917,273.37336231,9.9e-05,2]
[330149240,1719059538750,207.6633816,0.00012,2]
[330149241,1719059542598,273.37336231,9.9e-05,2]
[330149242,1719059550922,273.37336231,9.9e-05,2]
[330149243,1719059559365,273.37336231,9.9e-05,2]
[330149244,1719059563806,1840.02214241,0.00012,2]
[330149245,1719059567385,273.37336231,9.9e-05,2]
[330149246,1719059575753,273.37336231,9.9e-05,2]
[330149247,1719059583802,273.37336231,9.9e-05,2]
[330149248,1719059592061,273.37336231,9.9e-05,2]
[330149249,1719059593741,207.6633816,0.00012,2]
[330149252,1719059601279,273.37336231,9.9e-05,2]
[330149253,1719059610229,273.37336231,9.9e-05,2]
[330149254,1719059618849,273.37336231,9.9e-05,2]
[330149255,1719059627457,273.37336231,9.9e-05,2]
[330149256,1719059635524,273.37336231,9.9e-05,2]
[330149257,1719059644439,273.37336231,9.9e-05,2]
[330149259,1719059646758,203.55353974,0.00012,2]
[330149260,1719059652526,273.37336231,9.9e-05,2]
[330149261,1719059660825,273.37336231,9.9e-05,2]
[330149262,1719059668833,273.37336231,9.9e-05,2]
[330149264,1719059677675,273.37336231,9.9e-05,2]
[330149266,1719059685787,273.37336231,9.9e-05,2]
[330149267,1719059694850,273.37336231,9.9e-05,2]
[330149268,1719059703703,273.37336231,9.9e-05,2]
[330149269,1719059712664,273.37336231,9.9e-05,2]
[330149276,1719059721529,273.37336231,9.9e-05,2]
[330149285,1719059730443,273.37336231,9.9e-05,2]
[330149286,1719059738466,273.37336231,9.9e-05,2]
[330149288,1719059746962,273.37336231,9.9e-05,2]
[330149289,1719059755228,273.37336231,9.9e-05,2]
[330149290,1719059763826,273.37336231,9.9e-05,2]
[330149291,1719059771906,273.37336231,9.9e-05,2]
[330149292,1719059780335,273.37336231,9.9e-05,2]
[330149293,1719059788502,273.37336231,9.9e-05,2]
[330149294,1719059796737,273.37336231,9.9e-05,2]
[330149296,1719059804913,273.37336231,9.9e-05,2]
[330149297,1719059813858,273.37336231,9.9e-05,2]
[330149298,1719059822030,273.37336231,9.9e-05,2]
[330149299,1719059831012,273.37336231,9.9e-05,2]
[330149300,1719059838781,273.37336231,9.9e-05,2]
[330149301,1719059847870,273.37336231,9.9e-05,2]
[330149302,1719059856497,273.37336231,9.9e-05,2]
[330149303,1719059865043,273.37336231,9.9e-05,2]
[330149304,1719059873717,273.37336231,9.9e-05,2]
[330149305,1719059882706,273.37336231,9.9e-05,2]
[330149306,1719059891321,273.37336231,9.9e-05,2]
[330149307,1719059899736,273.37336231,9.9e-05,2]
[330149308,1719059908126,273.37336231,9.9e-05,2]
[330149309,1719059917058,273.37336231,9.9e-05,2]
[330149310,1719059925690,273.37336231,9.9e-05,2]
[330149311,1719059934132,273.37336231,9.9e-05,2]
[330149312,1719059942077,273.37336231,9.9e-05,2]
[330149313,1719059950905,273.37336231,9.9e-05,2]
[330149314,1719059959345,273.37336231,9.9e-05,2]
[330149315,1719059967718,273.37336231,9.9e-05,2]
[330149316,1719059975924,273.37336231,9.9e-05,2]
[330149317,1719059984191,273.37336231,9.9e-05,2]
[330149318,1719059992187,273.37336231,9.9e-05,2]
[330149319,1719060001150,273.37336231,9.9e-05,2]
[330149320,1719060010626,273.37336231,9.9e-05,2]
[330149321,1719060018684,273.37336231,9.9e-05,2]
[330149322,1719060026959,273.37336231,9.9e-05,2]
[330149323,1719060035870,273.37336231,9.9e-05,2]
[330149324,1719060043941,273.37336231,9.9e-05,2]
[330149325,1719060048105,5276.08774157,0.0001391,2]
[330149326,1719060052264,273.37336231,9.9e-05,2]
[330149327,1719060061064,273.37336231,9.9e-05,2]
[330149328,1719060070626,273.37336231,9.9e-05,2]
[330149329,1719060078717,273.37336231,9.9e-05,2]
[330149330,1719060087711,273.37336231,9.9e-05,2]
[330149331,1719060095713,273.37336231,9.9e-05,2]
[330149332,1719060103998,273.37336231,9.9e-05,2]
[330149333,1719060112038,273.37336231,9.9e-05,2]
[330149334,1719060120641,273.37336231,9.9e-05,2]
[330149335,1719060129016,273.37336231,9.9e-05,2]
[330149336,1719060137307,273.37336231,9.9e-05,2]
[330149338,1719060145970,273.37336231,9.9e-05,2]
[330149339,1719060154345,273.37336231,9.9e-05,2]
[330149340,1719060163222,273.37336231,9.9e-05,2]
[330149341,1719060171625,273.37336231,9.9e-05,2]
[330149342,1719060179710,273.37336231,9.9e-05,2]
[330149343,1719060180204,256.94980013,0.00012,2]
[330149344,1719060188046,273.37336231,9.9e-05,2]
[330149345,1719060197505,273.37336231,9.9e-05,2]
[330149346,1719060206350,273.37336231,9.9e-05,2]
[330149347,1719060215011,273.37336231,9.9e-05,2]
[330149348,1719060224467,273.37336231,9.9e-05,2]
[330149349,1719060233615,273.37336231,9.9e-05,2]
[330149350,1719060242554,273.37336231,9.9e-05,2]
[330149351,1719060250723,273.37336231,9.9e-05,2]
[330149352,1719060260351,273.37336231,9.9e-05,2]
[330149353,1719060269171,273.37336231,9.9e-05,2]
[330149354,1719060277996,273.37336231,9.9e-05,2]
[330149355,1719060286107,273.37336231,9.9e-05,2]
[330149356,1719060294391,273.37336231,9.9e-05,2]
[330149357,1719060302770,273.37336231,9.9e-05,2]
[330149358,1719060311059,273.37336231,9.9e-05,2]
[330149359,1719060319183,273.37336231,9.9e-05,2]
[330149360,1719060327552,273.37336231,9.9e-05,2]
[330149361,1719060336153,273.37336231,9.9e-05,2]
[330149362,1719060344998,273.37336231,9.9e-05,2]
[330149363,1719060353127,273.37336231,9.9e-05,2]
[330149364,1719060356450,-1978.17602524,0.00014094,2]
[330149365,1719060356474,-5021.82397476,0.00014095,2]
[330149366,1719060361708,273.37336231,9.9e-05,2]
[330149367,1719060371127,273.37336231,9.9e-05,2]
[330149368,1719060379487,273.37336231,9.9e-05,2]
[330149369,1719060387751,273.37336231,9.9e-05,2]
[330149370,1719060393569,1978.17602524,0.00012,2]
[330149371,1719060395886,166.8405698,9.9e-05,2]
[330149372,1719060443622,1978.17602524,0.00012,2]
[330149373,1719060488593,628.4617638,0.00012,2]
[330149374,1719060517660,300.0,9.784e-05,2]
[330149375,1719060517726,305.99416295,9.83e-05,2]
[330149376,1719060535328,-164.78171356,0.00014094,2]
[330149377,1719060535359,-380.31320457,0.00014095,2]
[330149378,1719060535395,-536.79961303,0.00014095,2]
[330149379,1719060536560,5276.08774157,0.00013888,2]
[330149380,1719060560664,-566.73280876,0.00014095,2]
[330149381,1719060560723,-507.79127115,0.00014095,2]
[330149384,1719060585276,-588.22329035,0.00014095,2]
[330149385,1719060585310,-588.22329035,0.00014095,2]
[330149386,1719060610696,-611.75222197,0.00014095,2]
[330149387,1719060610768,-590.3792205,0.00014095,2]
[330149407,1719060632656,-323.07299201,0.00014095,2]
[330149416,1719060638389,-1861.29054191,0.00014095,2]
[330149417,1719060638402,-4664.99246894,0.00014095,2]
[330149418,1719060638413,-809.05914677,0.00015,2]
[330149419,1719060638423,-500.0,0.00015,2]
[330149420,1719060638433,-556.89166906,0.00015114,2]
[330149421,1719060638444,-155.18309345,0.00015114,2]
[330149422,1719060638458,-500.0,0.00016,2]
[330149423,1719060638468,-1357.21199288,0.00016,2]
[330149424,1719060638478,-154.90861213,0.00016452,2]
[330149425,1719060638488,-164.78171356,0.00016799,2]
[330149426,1719060638498,-594.0,0.000168,2]
[330149428,1719060638509,-208.72042263,0.00016948,2]
[330149430,1719060638519,-154.80649189,0.00016948,2]
[330149432,1719060638531,-500.0,0.00017,2]
[330149433,1719060638541,-154.82195475,0.00017176,2]
[330149436,1719060638551,-154.80649189,0.00017227,2]
[330149437,1719060638561,-153.243,0.00017228,2]
[330149439,1719060638571,-1752.0,0.00017228,2]
[330149441,1719060638581,-1901.98425242,0.00018,2]
[330149443,1719060638591,-477.28525612,0.00018,2]
[330149444,1719060638602,-500.0,0.00018,2]
[330149445,1719060638612,-201.96766519,0.00018,2]
[330149446,1719060638623,-306.8260083,0.00018082,2]
[330149448,1719060638633,-325.6364882,0.000189,2]
[330149450,1719060638643,-2754.34171057,0.000189,2]
[330149452,1719060638653,-396.78518563,0.000189,2]
[330149454,1719060638663,-1312.68071553,0.00018939,2]
[330149456,1719060638672,-325.63648817,0.00018944,2]
[330149457,1719060638682,-325.63648817,0.00018988,2]
[330149459,1719060638692,-3520.65871845,0.00019,2]
[330149462,1719060638706,-1346.5,0.00019,2]
[330149768,1719060646781,-3.0,0.00015044,4]
[330149772,1719060790883,155.0,0.000225,30]
[330149774,1719060795736,155.0,0.000225,30]
[330149776,1719060800371,155.0,0.000225,30]
[330149777,1719060805104,155.0,0.000225,30]
[330149778,1719060809614,155.0,0.000225,30]
[330149779,1719060814737,155.0,0.000225,30]